[Event "Titled Tuesday Blitz August 31 2021"]
[White "deribas12345"]
[Black "Starozhilov, Leonid"]
[BlackFideId "14106752"]
[WhiteElo "2578"]
[BlackElo "2414"]
[Result "1-0"]
[Round "05"]
[TimeControl "180+1"]
[Date "2021.08.31"]
[WhiteClock "0:00:07"]
[BlackClock "0:00:08"]

1. d4 {[%clk 0:03:00]}  Nf6 {[%clk 0:02:59]} 2. c4 {[%clk 0:03:00]}  g6 {[%clk 0:03:00]} 3. Nc3 {[%clk 0:03:00]}  d6 {[%clk 0:02:58]} 4. e4 {[%clk 0:03:00]}  Bg7 {[%clk 0:02:59]} 5. Nge2 {[%clk 0:03:00]}  c6 {[%clk 0:02:57]} 6. Ng3 {[%clk 0:03:00]}  h5 {[%clk 0:02:57]} 7. Be2 {[%clk 0:02:59]}  h4 {[%clk 0:02:56]} 8. Nf1 {[%clk 0:02:59]}  a6 {[%clk 0:02:54]} 9. a4 {[%clk 0:02:55]}  a5 {[%clk 0:02:51]} 10. h3 {[%clk 0:02:53]}  Na6 {[%clk 0:02:51]} 11. Bg5 {[%clk 0:02:50]}  Nb4 {[%clk 0:02:50]} 12. Nd2 {[%clk 0:02:46]}  Nh7 {[%clk 0:02:24]} 13. Be3 {[%clk 0:02:39]}  e5 {[%clk 0:02:18]} 14. d5 {[%clk 0:02:38]}  c5 {[%clk 0:02:16]} 15. O-O {[%clk 0:02:33]}  O-O {[%clk 0:02:14]} 16. Nb5 {[%clk 0:02:26]}  b6 {[%clk 0:02:08]} 17. Ra3 {[%clk 0:02:15]}  Bf6 {[%clk 0:01:50]} 18. f4 {[%clk 0:01:58]}  Ba6 {[%clk 0:01:42]} 19. f5 {[%clk 0:01:54]}  Bg5 {[%clk 0:01:26]} 20. Bxg5 {[%clk 0:01:52]}  Nxg5 {[%clk 0:01:24]} 21. f6 {[%clk 0:01:47]}  Rb8 {[%clk 0:00:58]} 22. Qe1 {[%clk 0:01:44]}  Bxb5 {[%clk 0:00:34]} 23. axb5 {[%clk 0:01:39]}  Nc2 {[%clk 0:00:29]} 24. Qxh4 {[%clk 0:01:38]}  Nh7 {[%clk 0:00:28]} 25. Rg3 {[%clk 0:01:30]}  Nd4 {[%clk 0:00:24]} 26. Bd1 {[%clk 0:01:30]}  Kh8 {[%clk 0:00:23]} 27. Qh6 {[%clk 0:01:28]}  Rg8 {[%clk 0:00:22]} 28. Nf3 {[%clk 0:01:03]}  Qf8 {[%clk 0:00:20]} 29. Qh4 {[%clk 0:00:55]}  Nxf3+ {[%clk 0:00:19]} 30. Rgxf3 {[%clk 0:00:46]}  g5 {[%clk 0:00:19]} 31. Qg3 {[%clk 0:00:40]}  Rg6 {[%clk 0:00:19]} 32. Rf5 {[%clk 0:00:38]}  Qh6 {[%clk 0:00:18]} 33. Bg4 {[%clk 0:00:31]}  Rbg8 {[%clk 0:00:17]} 34. Qf3 {[%clk 0:00:30]}  Qh4 {[%clk 0:00:15]} 35. g3 {[%clk 0:00:27]}  Qh6 {[%clk 0:00:15]} 36. Kg2 {[%clk 0:00:25]}  Qf8 {[%clk 0:00:15]} 37. Bh5 {[%clk 0:00:23]}  Rh6 {[%clk 0:00:15]} 38. g4 {[%clk 0:00:23]}  Rxh5 {[%clk 0:00:10]} 39. gxh5 {[%clk 0:00:23]}  Qh6 {[%clk 0:00:10]} 40. Qg4 {[%clk 0:00:21]}  Rf8 {[%clk 0:00:08]} 41. R1f3 {[%clk 0:00:17]}  Rd8 {[%clk 0:00:08]} 42. Rg3 {[%clk 0:00:18]}  Rg8 {[%clk 0:00:07]} 43. h4 {[%clk 0:00:16]}  Nxf6 {[%clk 0:00:06]} 44. Rxf6 {[%clk 0:00:13]}  Qxf6 {[%clk 0:00:06]} 45. hxg5 {[%clk 0:00:14]}  Qg7 {[%clk 0:00:05]} 46. Qf5 {[%clk 0:00:14]}  Rf8 {[%clk 0:00:04]} 47. Kf3 {[%clk 0:00:12]}  Kg8 {[%clk 0:00:05]} 48. Ke2 {[%clk 0:00:11]}  Kh8 {[%clk 0:00:04]} 49. Rg4 {[%clk 0:00:11]}  Rg8 {[%clk 0:00:03]} 50. b3 {[%clk 0:00:11]}  Rf8 {[%clk 0:00:03]} 51. Kf3 {[%clk 0:00:11]}  Kg8 {[%clk 0:00:03]} 52. Qf6 {[%clk 0:00:11]}  Kh8 {[%clk 0:00:02]} 53. Kg3 {[%clk 0:00:10]}  Kh7 {[%clk 0:00:02]} 54. Qf5+ {[%clk 0:00:10]}  Kh8 {[%clk 0:00:02]} 55. h6 {[%clk 0:00:09]}  Qg6 {[%clk 0:00:02]} 56. Qf6+ {[%clk 0:00:07]}  Kh7 {[%clk 0:00:01]} 57. Qf5 {[%clk 0:00:08]}  Qxf5 {[%clk 0:00:01]} 58. exf5 {[%clk 0:00:08]}  Rg8 {[%clk 0:00:02]} 59. Kh4 {[%clk 0:00:07]}  f6 {[%clk 0:00:02]} 60. Kh5 {[%clk 0:00:02]}  fxg5 {[%clk 0:00:02]} 61. Rxg5 {[%clk 0:00:03]}  Rxg5+ {[%clk 0:00:02]} 62. Kxg5 {[%clk 0:00:03]}  Kg8 {[%clk 0:00:03]} 63. f6 {[%clk 0:00:02]}  e4 {[%clk 0:00:02]} 64. Kf4 {[%clk 0:00:02]}  a4 {[%clk 0:00:03]} 65. bxa4 {[%clk 0:00:01]}  Kf7 {[%clk 0:00:04]} 66. Kxe4 {[%clk 0:00:02]}  Kxf6 {[%clk 0:00:04]} 67. Kf4 {[%clk 0:00:02]}  Kg6 {[%clk 0:00:05]} 68. Kg4 {[%clk 0:00:03]}  Kxh6 {[%clk 0:00:05]} 69. Kf5 {[%clk 0:00:04]}  Kg7 {[%clk 0:00:06]} 70. Ke6 {[%clk 0:00:05]}  Kg6 {[%clk 0:00:07]} 71. Kxd6 {[%clk 0:00:05]}  Kf5 {[%clk 0:00:07]} 72. Kc6 {[%clk 0:00:06]}  Ke4 {[%clk 0:00:08]} 73. Kxb6 {[%clk 0:00:07]} 1-0


[Site "https://www.chess.com"]

[Event "Titled Tuesday Blitz August 31 2021"]
[White "Abdurakhmonov, Mukhammadali"]
[Black "Xiong, Jeffery"]
[WhiteFideId "14207346"]
[BlackFideId "2047640"]
[WhiteElo "2266"]
[BlackElo "2724"]
[Result "1/2-1/2"]
[Round "06"]
[TimeControl "180+1"]
[Date "2021.08.31"]
[WhiteClock "0:01:44"]
[BlackClock "0:01:47"]

1. e4 {[%clk 0:03:00]}  c5 {[%clk 0:02:58]} 2. Nc3 {[%clk 0:03:00]}  Nc6 {[%clk 0:02:58]} 3. Nge2 {[%clk 0:03:01]}  g6 {[%clk 0:02:58]} 4. d4 {[%clk 0:03:00]}  cxd4 {[%clk 0:02:59]} 5. Nxd4 {[%clk 0:03:01]}  Bg7 {[%clk 0:03:00]} 6. Be3 {[%clk 0:03:02]}  Nf6 {[%clk 0:03:00]} 7. Nxc6 {[%clk 0:03:02]}  bxc6 {[%clk 0:02:59]} 8. e5 {[%clk 0:03:03]}  Ng8 {[%clk 0:03:00]} 9. Bd4 {[%clk 0:03:03]}  Nh6 {[%clk 0:02:59]} 10. e6 {[%clk 0:03:03]}  O-O {[%clk 0:02:15]} 11. Bxg7 {[%clk 0:03:02]}  Kxg7 {[%clk 0:02:16]} 12. Qd4+ {[%clk 0:03:02]}  f6 {[%clk 0:02:12]} 13. exd7 {[%clk 0:03:02]}  Qxd7 {[%clk 0:02:13]} 14. Qxd7 {[%clk 0:03:02]}  Bxd7 {[%clk 0:02:14]} 15. O-O-O {[%clk 0:03:02]}  Rfd8 {[%clk 0:02:13]} 16. Ba6 {[%clk 0:03:01]}  Rab8 {[%clk 0:02:11]} 17. Rhe1 {[%clk 0:02:58]}  Kf8 {[%clk 0:02:11]} 18. Na4 {[%clk 0:02:57]}  Nf5 {[%clk 0:01:57]} 19. Nc5 {[%clk 0:02:53]}  Nd6 {[%clk 0:01:57]} 20. a3 {[%clk 0:02:46]}  Kf7 {[%clk 0:01:51]} 21. b4 {[%clk 0:02:42]}  Bf5 {[%clk 0:01:49]} 22. Kb2 {[%clk 0:02:34]}  h5 {[%clk 0:01:48]} 23. Nb3 {[%clk 0:01:57]}  e5 {[%clk 0:01:48]} 24. Na5 {[%clk 0:01:51]}  Rb6 {[%clk 0:01:48]} 25. Nc4 {[%clk 0:01:50]}  Nxc4+ {[%clk 0:01:47]} 26. Bxc4+ {[%clk 0:01:51]}  Ke7 {[%clk 0:01:47]} 27. Rxd8 {[%clk 0:01:46]}  Kxd8 {[%clk 0:01:48]} 28. Kc3 {[%clk 0:01:46]}  Ke7 {[%clk 0:01:46]} 29. f4 {[%clk 0:01:44]}  Kd6 {[%clk 0:01:46]} 30. Rd1+ {[%clk 0:01:43]}  Ke7 {[%clk 0:01:47]} 31. Re1 {[%clk 0:01:43]}  Kd6 {[%clk 0:01:47]} 32. Rd1+ {[%clk 0:01:43]}  Ke7 {[%clk 0:01:47]} 33. Re1 {[%clk 0:01:44]} 1/2-1/2


[Site "https://www.chess.com"]

[Event "Titled Tuesday Blitz August 31 2021"]
[White "Baskin, Robert"]
[Black "Csonka, Balazs"]
[WhiteFideId "24662402"]
[BlackFideId "742910"]
[WhiteElo "2462"]
[BlackElo "2404"]
[Result "0-1"]
[Round "06"]
[TimeControl "180+1"]
[Date "2021.08.31"]
[WhiteClock "0:00:02"]
[BlackClock "0:00:41"]

1. e4 {[%clk 0:03:00]}  e6 {[%clk 0:02:57]} 2. d4 {[%clk 0:03:00]}  d5 {[%clk 0:02:57]} 3. Nc3 {[%clk 0:02:59]}  Nf6 {[%clk 0:02:57]} 4. Bg5 {[%clk 0:02:59]}  dxe4 {[%clk 0:02:55]} 5. Nxe4 {[%clk 0:02:59]}  Be7 {[%clk 0:02:55]} 6. Bxf6 {[%clk 0:02:57]}  gxf6 {[%clk 0:02:56]} 7. Nc3 {[%clk 0:02:57]}  a6 {[%clk 0:02:47]} 8. g3 {[%clk 0:02:56]}  b5 {[%clk 0:02:42]} 9. Bg2 {[%clk 0:02:54]}  Ra7 {[%clk 0:02:43]} 10. Qd3 {[%clk 0:02:32]}  b4 {[%clk 0:02:26]} 11. Nce2 {[%clk 0:02:28]}  Bb7 {[%clk 0:02:17]} 12. Bxb7 {[%clk 0:02:27]}  Rxb7 {[%clk 0:02:18]} 13. O-O-O {[%clk 0:02:24]}  Qd5 {[%clk 0:02:16]} 14. Nf3 {[%clk 0:02:22]}  Qxa2 {[%clk 0:02:14]} 15. d5 {[%clk 0:02:01]}  Qa1+ {[%clk 0:01:59]} 16. Kd2 {[%clk 0:02:01]}  Qxb2 {[%clk 0:02:00]} 17. dxe6 {[%clk 0:01:47]}  fxe6 {[%clk 0:01:55]} 18. Ned4 {[%clk 0:01:04]}  Qc3+ {[%clk 0:01:46]} 19. Qxc3 {[%clk 0:01:02]}  bxc3+ {[%clk 0:01:47]} 20. Kxc3 {[%clk 0:01:02]}  Kf7 {[%clk 0:01:45]} 21. Rhe1 {[%clk 0:00:58]}  Rb6 {[%clk 0:01:45]} 22. Re2 {[%clk 0:00:50]}  Rd8 {[%clk 0:01:25]} 23. Rd3 {[%clk 0:00:30]}  e5 {[%clk 0:01:07]} 24. Nf5 {[%clk 0:00:25]}  Bb4+ {[%clk 0:01:06]} 25. Kc4 {[%clk 0:00:24]}  Rxd3 {[%clk 0:01:03]} 26. cxd3 {[%clk 0:00:24]}  Nc6 {[%clk 0:00:58]} 27. d4 {[%clk 0:00:15]}  Bd6 {[%clk 0:00:51]} 28. Nxd6+ {[%clk 0:00:03]}  cxd6 {[%clk 0:00:51]} 29. Rc2 {[%clk 0:00:03]}  Nb4 {[%clk 0:00:42]} 30. Rc1 {[%clk 0:00:02]}  Rc6+ {[%clk 0:00:41]} 0-1


[Site "https://www.chess.com"]

[Event "Titled Tuesday Blitz August 31 2021"]
[White "Bernadskiy, Vitaliy"]
[Black "Martin Duque, Jesus"]
[WhiteFideId "14100371"]
[BlackFideId "2208954"]
[WhiteElo "2510"]
[BlackElo "2224"]
[Result "1-0"]
[Round "06"]
[TimeControl "180+1"]
[Date "2021.08.31"]
[WhiteClock "0:00:44"]
[BlackClock "0:00:03"]

1. e4 {[%clk 0:03:00]}  c5 {[%clk 0:02:59]} 2. Nf3 {[%clk 0:03:00]}  e6 {[%clk 0:02:59]} 3. d4 {[%clk 0:03:00]}  cxd4 {[%clk 0:03:00]} 4. Nxd4 {[%clk 0:03:00]}  Nc6 {[%clk 0:03:00]} 5. Nc3 {[%clk 0:03:00]}  Qc7 {[%clk 0:03:00]} 6. g4 {[%clk 0:03:00]}  a6 {[%clk 0:02:59]} 7. Be3 {[%clk 0:02:57]}  Nge7 {[%clk 0:02:56]} 8. f4 {[%clk 0:02:35]}  Nxd4 {[%clk 0:02:27]} 9. Qxd4 {[%clk 0:02:36]}  Nc6 {[%clk 0:02:28]} 10. Qb6 {[%clk 0:02:31]}  Qxb6 {[%clk 0:02:01]} 11. Bxb6 {[%clk 0:02:32]}  Bb4 {[%clk 0:02:00]} 12. O-O-O {[%clk 0:02:30]}  Ke7 {[%clk 0:01:59]} 13. a3 {[%clk 0:02:18]}  Bxc3 {[%clk 0:01:59]} 14. Bc5+ {[%clk 0:02:18]}  Ke8 {[%clk 0:01:58]} 15. bxc3 {[%clk 0:02:18]}  f6 {[%clk 0:01:57]} 16. h4 {[%clk 0:02:17]}  Kf7 {[%clk 0:01:58]} 17. g5 {[%clk 0:02:04]}  Rd8 {[%clk 0:01:31]} 18. Bb6 {[%clk 0:02:02]}  Re8 {[%clk 0:01:31]} 19. Bc4 {[%clk 0:01:57]}  d5 {[%clk 0:01:29]} 20. exd5 {[%clk 0:01:26]}  exd5 {[%clk 0:01:30]} 21. Rxd5 {[%clk 0:01:26]}  Be6 {[%clk 0:01:22]} 22. Rd7+ {[%clk 0:01:25]}  Re7 {[%clk 0:01:19]} 23. Bxe6+ {[%clk 0:01:07]}  Kxe6 {[%clk 0:01:19]} 24. Rd3 {[%clk 0:01:06]}  Kf5 {[%clk 0:01:18]} 25. Rd5+ {[%clk 0:01:03]}  Kxf4 {[%clk 0:00:45]} 26. gxf6 {[%clk 0:01:00]}  gxf6 {[%clk 0:00:45]} 27. Rf1+ {[%clk 0:01:00]}  Ke4 {[%clk 0:00:44]} 28. c4 {[%clk 0:00:56]}  Re5 {[%clk 0:00:32]} 29. Rd3 {[%clk 0:00:45]}  f5 {[%clk 0:00:03]} 30. Re3# {[%clk 0:00:44]} 1-0


[Site "https://www.chess.com"]

[Event "Titled Tuesday Blitz August 31 2021"]
[White "Bortnyk, Olexandr"]
[Black "Dang, Hoang Son"]
[WhiteFideId "14120828"]
[BlackFideId "12402435"]
[WhiteElo "2723"]
[BlackElo "2248"]
[Result "1-0"]
[Round "06"]
[TimeControl "180+1"]
[Date "2021.08.31"]
[WhiteClock "0:01:27"]
[BlackClock "0:00:57"]

1. d4 {[%clk 0:03:00]}  Nf6 {[%clk 0:02:59]} 2. Nc3 {[%clk 0:03:00]}  d5 {[%clk 0:02:56]} 3. Bf4 {[%clk 0:02:57]}  c6 {[%clk 0:02:56]} 4. e3 {[%clk 0:02:57]}  Nbd7 {[%clk 0:02:54]} 5. Bd3 {[%clk 0:02:51]}  b5 {[%clk 0:02:54]} 6. Nf3 {[%clk 0:02:49]}  Nb6 {[%clk 0:02:52]} 7. Ne5 {[%clk 0:02:48]}  Bb7 {[%clk 0:02:51]} 8. O-O {[%clk 0:02:45]}  e6 {[%clk 0:02:51]} 9. Qf3 {[%clk 0:02:39]}  a6 {[%clk 0:02:41]} 10. a4 {[%clk 0:02:37]}  b4 {[%clk 0:02:35]} 11. Ne2 {[%clk 0:02:33]}  a5 {[%clk 0:02:22]} 12. Bg5 {[%clk 0:02:29]}  Be7 {[%clk 0:02:21]} 13. Nf4 {[%clk 0:02:27]}  Nbd7 {[%clk 0:02:06]} 14. Nh5 {[%clk 0:02:22]}  O-O {[%clk 0:02:00]} 15. Nxg7 {[%clk 0:01:38]}  Kxg7 {[%clk 0:01:48]} 16. Qg3 {[%clk 0:01:32]}  Nh5 {[%clk 0:01:07]} 17. Bf6+ {[%clk 0:01:26]}  Kxf6 {[%clk 0:01:02]} 18. Nxd7+ {[%clk 0:01:26]}  Qxd7 {[%clk 0:00:57]} 19. Qe5# {[%clk 0:01:27]} 1-0


[Site "https://www.chess.com"]

[Event "Titled Tuesday Blitz August 31 2021"]
[White "Chigaev, Maksim"]
[Black "Naroditsky, Daniel"]
[WhiteFideId "4108116"]
[BlackFideId "2026961"]
[WhiteElo "2579"]
[BlackElo "2608"]
[Result "1/2-1/2"]
[Round "06"]
[TimeControl "180+1"]
[Date "2021.08.31"]
[WhiteClock "0:00:27"]
[BlackClock "0:00:44"]

1. d4 {[%clk 0:03:00]}  Nf6 {[%clk 0:02:58]} 2. Bg5 {[%clk 0:02:59]}  Ne4 {[%clk 0:02:59]} 3. h4 {[%clk 0:02:59]}  d5 {[%clk 0:02:58]} 4. Nd2 {[%clk 0:02:58]}  Nf6 {[%clk 0:02:49]} 5. e3 {[%clk 0:02:54]}  c5 {[%clk 0:02:49]} 6. c3 {[%clk 0:02:54]}  Nbd7 {[%clk 0:02:48]} 7. Ngf3 {[%clk 0:02:53]}  e6 {[%clk 0:02:43]} 8. Bf4 {[%clk 0:02:50]}  b6 {[%clk 0:02:39]} 9. h5 {[%clk 0:02:45]}  h6 {[%clk 0:02:39]} 10. Ne5 {[%clk 0:02:44]}  Bb7 {[%clk 0:02:38]} 11. Bd3 {[%clk 0:02:40]}  Nxe5 {[%clk 0:02:36]} 12. Bxe5 {[%clk 0:02:38]}  Bd6 {[%clk 0:02:33]} 13. f4 {[%clk 0:02:37]}  Qc7 {[%clk 0:02:17]} 14. Qe2 {[%clk 0:02:20]}  Bxe5 {[%clk 0:02:11]} 15. fxe5 {[%clk 0:02:19]}  Nd7 {[%clk 0:02:11]} 16. Qg4 {[%clk 0:02:13]}  O-O-O {[%clk 0:02:03]} 17. Qxg7 {[%clk 0:02:00]}  f6 {[%clk 0:01:56]} 18. exf6 {[%clk 0:01:47]}  Rdg8 {[%clk 0:01:54]} 19. Qf7 {[%clk 0:01:42]}  Qg3+ {[%clk 0:01:30]} 20. Kd1 {[%clk 0:01:42]}  Rf8 {[%clk 0:01:27]} 21. Qxe6 {[%clk 0:01:36]}  Rxf6 {[%clk 0:01:19]} 22. Qh3 {[%clk 0:01:36]}  Qxh3 {[%clk 0:01:12]} 23. Rxh3 {[%clk 0:01:36]}  Rf2 {[%clk 0:01:13]} 24. Rg3 {[%clk 0:01:34]}  Nf6 {[%clk 0:01:12]} 25. Ke1 {[%clk 0:01:32]}  Rf8 {[%clk 0:01:02]} 26. Kxf2 {[%clk 0:01:09]}  Ne4+ {[%clk 0:01:01]} 27. Kg1 {[%clk 0:01:04]}  Nxg3 {[%clk 0:01:02]} 28. Nf3 {[%clk 0:01:03]}  Nxh5 {[%clk 0:01:01]} 29. Kf2 {[%clk 0:01:00]}  Nf6 {[%clk 0:01:00]} 30. Rh1 {[%clk 0:00:58]}  Kc7 {[%clk 0:00:56]} 31. Ke2 {[%clk 0:00:55]}  Ng4 {[%clk 0:00:54]} 32. Rh4 {[%clk 0:00:52]}  Bc8 {[%clk 0:00:55]} 33. Bg6 {[%clk 0:00:51]}  Rg8 {[%clk 0:00:51]} 34. Bf7 {[%clk 0:00:49]}  Rg7 {[%clk 0:00:51]} 35. Bh5 {[%clk 0:00:42]}  Nf6 {[%clk 0:00:49]} 36. Kf2 {[%clk 0:00:40]}  Ne4+ {[%clk 0:00:47]} 37. Kg1 {[%clk 0:00:40]}  Ng3 {[%clk 0:00:45]} 38. Ne5 {[%clk 0:00:29]}  Nf5 {[%clk 0:00:44]} 39. Rg4 {[%clk 0:00:27]} 1/2-1/2


[Site "https://www.chess.com"]

[Event "Titled Tuesday Blitz August 31 2021"]
[White "Chos, Alexey"]
[Black "Zubov, Alexander"]
[WhiteFideId "14117762"]
[BlackFideId "14109409"]
[WhiteElo "2234"]
[BlackElo "2740"]
[Result "0-1"]
[Round "06"]
[TimeControl "180+1"]
[Date "2021.08.31"]
[WhiteClock "0:01:34"]
[BlackClock "0:01:56"]

1. d4 {[%clk 0:03:00]}  d5 {[%clk 0:02:58]} 2. Nf3 {[%clk 0:03:00]}  Nf6 {[%clk 0:02:57]} 3. c4 {[%clk 0:03:00]}  dxc4 {[%clk 0:02:57]} 4. g3 {[%clk 0:03:00]}  b5 {[%clk 0:02:56]} 5. Bg2 {[%clk 0:02:57]}  Bb7 {[%clk 0:02:56]} 6. O-O {[%clk 0:02:58]}  e6 {[%clk 0:02:57]} 7. Nbd2 {[%clk 0:02:56]}  Nbd7 {[%clk 0:02:53]} 8. Qc2 {[%clk 0:02:56]}  c5 {[%clk 0:02:50]} 9. e4 {[%clk 0:02:48]}  Be7 {[%clk 0:02:43]} 10. Rd1 {[%clk 0:02:44]}  Qb6 {[%clk 0:02:40]} 11. b3 {[%clk 0:02:39]}  cxb3 {[%clk 0:02:38]} 12. Nxb3 {[%clk 0:02:39]}  Bxe4 {[%clk 0:02:36]} 13. Qe2 {[%clk 0:02:37]}  c4 {[%clk 0:02:33]} 14. Nbd2 {[%clk 0:02:28]}  Bd5 {[%clk 0:02:33]} 15. Nf1 {[%clk 0:02:20]}  O-O {[%clk 0:02:30]} 16. Ne3 {[%clk 0:02:20]}  Be4 {[%clk 0:02:30]} 17. Ne5 {[%clk 0:02:18]}  Bxg2 {[%clk 0:02:29]} 18. Kxg2 {[%clk 0:02:16]}  Qb7+ {[%clk 0:02:29]} 19. f3 {[%clk 0:02:15]}  Nxe5 {[%clk 0:02:20]} 20. dxe5 {[%clk 0:02:16]}  Nd7 {[%clk 0:02:21]} 21. Bb2 {[%clk 0:02:14]}  Nc5 {[%clk 0:02:20]} 22. Rab1 {[%clk 0:02:11]}  Nd3 {[%clk 0:02:18]} 23. Bc3 {[%clk 0:02:09]}  Qc6 {[%clk 0:02:17]} 24. Nc2 {[%clk 0:02:08]}  Bc5 {[%clk 0:02:15]} 25. Bd4 {[%clk 0:01:58]}  Rfd8 {[%clk 0:02:12]} 26. Bc3 {[%clk 0:01:53]}  a5 {[%clk 0:02:09]} 27. Ne3 {[%clk 0:01:41]}  Bxe3 {[%clk 0:02:07]} 28. Qxe3 {[%clk 0:01:42]}  b4 {[%clk 0:02:06]} 29. Ba1 {[%clk 0:01:41]}  Rd5 {[%clk 0:02:02]} 30. Rd2 {[%clk 0:01:36]}  Rad8 {[%clk 0:02:01]} 31. Rc2 {[%clk 0:01:36]}  c3 {[%clk 0:01:57]} 32. a3 {[%clk 0:01:34]}  Rxe5 {[%clk 0:01:56]} 0-1


[Site "https://www.chess.com"]

[Event "Titled Tuesday Blitz August 31 2021"]
[White "Dudzinski, Pawel"]
[Black "Borsuk, Konstantin"]
[WhiteFideId "1117890"]
[BlackFideId "14113406"]
[WhiteElo "2193"]
[BlackElo "2382"]
[Result "0-1"]
[Round "06"]
[TimeControl "180+1"]
[Date "2021.08.31"]
[WhiteClock "0:00:07"]
[BlackClock "0:00:46"]

1. e4 {[%clk 0:02:59]}  e6 {[%clk 0:02:59]} 2. d4 {[%clk 0:02:59]}  d5 {[%clk 0:02:59]} 3. Nd2 {[%clk 0:02:59]}  Nf6 {[%clk 0:02:59]} 4. Bd3 {[%clk 0:02:59]}  c5 {[%clk 0:02:58]} 5. exd5 {[%clk 0:02:59]}  Qxd5 {[%clk 0:02:56]} 6. Ngf3 {[%clk 0:02:54]}  cxd4 {[%clk 0:02:56]} 7. O-O {[%clk 0:02:51]}  Nc6 {[%clk 0:02:56]} 8. Bc4 {[%clk 0:02:50]}  Qd6 {[%clk 0:02:50]} 9. Nb3 {[%clk 0:02:46]}  e5 {[%clk 0:02:48]} 10. Re1 {[%clk 0:02:44]}  Be6 {[%clk 0:02:39]} 11. Bxe6 {[%clk 0:02:34]}  fxe6 {[%clk 0:02:40]} 12. Qe2 {[%clk 0:02:31]}  e4 {[%clk 0:02:30]} 13. Ng5 {[%clk 0:02:11]}  Qd5 {[%clk 0:02:14]} 14. Nxe4 {[%clk 0:02:09]}  e5 {[%clk 0:01:58]} 15. f4 {[%clk 0:01:47]}  O-O-O {[%clk 0:01:41]} 16. fxe5 {[%clk 0:01:43]}  Nxe5 {[%clk 0:01:29]} 17. Ng5 {[%clk 0:01:21]}  Bd6 {[%clk 0:01:23]} 18. Bf4 {[%clk 0:00:37]}  Rhe8 {[%clk 0:01:22]} 19. Qd2 {[%clk 0:00:28]}  Nc4 {[%clk 0:01:16]} 20. Qf2 {[%clk 0:00:21]}  Ne3 {[%clk 0:01:14]} 21. Bxd6 {[%clk 0:00:19]}  Rxd6 {[%clk 0:01:06]} 22. Nf3 {[%clk 0:00:16]}  Ne4 {[%clk 0:00:59]} 23. Qh4 {[%clk 0:00:16]}  Nxg2 {[%clk 0:00:52]} 24. Qh3+ {[%clk 0:00:11]}  Kb8 {[%clk 0:00:52]} 25. Kxg2 {[%clk 0:00:11]}  Rg6+ {[%clk 0:00:50]} 26. Kf1 {[%clk 0:00:10]}  Rf8 {[%clk 0:00:49]} 27. Nxd4 {[%clk 0:00:09]}  Qxd4 {[%clk 0:00:48]} 28. Re2 {[%clk 0:00:07]}  Qg1# {[%clk 0:00:46]} 0-1


[Site "https://www.chess.com"]

[Event "Titled Tuesday Blitz August 31 2021"]
[White "Erdogdu, Mert"]
[Black "Iskusnyh, Sergei"]
[WhiteFideId "6301495"]
[BlackFideId "4120027"]
[WhiteElo "2485"]
[BlackElo "2492"]
[Result "0-1"]
[Round "06"]
[TimeControl "180+1"]
[Date "2021.08.31"]
[WhiteClock "0:00:02"]
[BlackClock "0:00:10"]

1. e4 {[%clk 0:03:00]}  e6 {[%clk 0:02:59]} 2. d4 {[%clk 0:03:01]}  d5 {[%clk 0:03:00]} 3. exd5 {[%clk 0:03:01]}  exd5 {[%clk 0:03:00]} 4. c4 {[%clk 0:03:02]}  Nf6 {[%clk 0:02:59]} 5. Nc3 {[%clk 0:03:03]}  Bb4 {[%clk 0:02:55]} 6. Bd3 {[%clk 0:03:03]}  O-O {[%clk 0:02:53]} 7. Ne2 {[%clk 0:03:03]}  dxc4 {[%clk 0:02:51]} 8. Bxc4 {[%clk 0:03:04]}  Nc6 {[%clk 0:02:46]} 9. O-O {[%clk 0:03:02]}  Bf5 {[%clk 0:02:30]} 10. Bg5 {[%clk 0:02:50]}  Be7 {[%clk 0:02:19]} 11. a3 {[%clk 0:02:28]}  Ne4 {[%clk 0:02:03]} 12. Bxe7 {[%clk 0:02:03]}  Qxe7 {[%clk 0:01:54]} 13. Nxe4 {[%clk 0:01:56]}  Bxe4 {[%clk 0:01:41]} 14. Ng3 {[%clk 0:01:54]}  Bg6 {[%clk 0:01:38]} 15. d5 {[%clk 0:01:47]}  Ne5 {[%clk 0:01:32]} 16. Ba2 {[%clk 0:01:45]}  Rad8 {[%clk 0:01:29]} 17. f4 {[%clk 0:01:18]}  Nd3 {[%clk 0:00:33]} 18. f5 {[%clk 0:01:09]}  Qe3+ {[%clk 0:00:30]} 19. Kh1 {[%clk 0:01:09]}  Nf2+ {[%clk 0:00:31]} 20. Rxf2 {[%clk 0:01:09]}  Qxf2 {[%clk 0:00:31]} 21. fxg6 {[%clk 0:01:09]}  hxg6 {[%clk 0:00:31]} 22. Qb3 {[%clk 0:00:56]}  Rfe8 {[%clk 0:00:28]} 23. Rf1 {[%clk 0:00:21]}  Re1 {[%clk 0:00:27]} 24. Qf3 {[%clk 0:00:22]}  Rxf1+ {[%clk 0:00:25]} 25. Nxf1 {[%clk 0:00:22]}  Qxb2 {[%clk 0:00:25]} 26. Bb3 {[%clk 0:00:17]}  Qf6 {[%clk 0:00:23]} 27. Kg1 {[%clk 0:00:15]}  Re8 {[%clk 0:00:22]} 28. Kf2 {[%clk 0:00:12]}  Qb6+ {[%clk 0:00:22]} 29. Kg3 {[%clk 0:00:11]}  Qd6+ {[%clk 0:00:21]} 30. Kf2 {[%clk 0:00:11]}  Re5 {[%clk 0:00:21]} 31. g4 {[%clk 0:00:10]}  Qxa3 {[%clk 0:00:20]} 32. d6 {[%clk 0:00:10]}  Qb2+ {[%clk 0:00:19]} 33. Kg3 {[%clk 0:00:09]}  cxd6 {[%clk 0:00:13]} 34. Qxf7+ {[%clk 0:00:08]}  Kh7 {[%clk 0:00:13]} 35. Qg8+ {[%clk 0:00:07]}  Kh6 {[%clk 0:00:14]} 36. h4 {[%clk 0:00:06]}  Qc3+ {[%clk 0:00:11]} 37. Kf2 {[%clk 0:00:07]}  Qd4+ {[%clk 0:00:11]} 38. Kg3 {[%clk 0:00:05]}  Qc3+ {[%clk 0:00:11]} 39. Kg2 {[%clk 0:00:05]}  Re2+ {[%clk 0:00:10]} 40. Kg1 {[%clk 0:00:03]}  Qd4+ {[%clk 0:00:10]} 41. Kh1 {[%clk 0:00:03]}  Qe4+ {[%clk 0:00:10]} 42. Kg1 {[%clk 0:00:02]}  Qg2# {[%clk 0:00:10]} 0-1


[Site "https://www.chess.com"]